[Event "Titled Tuesday Blitz June 27 Late 2023"]
[White "Weishaeutel, Moritz"]
[Black "Figorito, Nick"]
[WhiteFideId "12967300"]
[BlackFideId "30923689"]
[WhiteElo "2641"]
[BlackElo "2414"]
[Result "0-1"]
[Round "4"]
[TimeControl "180+2"]
[Date "2023.06.27"]
[WhiteClock "0:00:04"]
[BlackClock "0:00:19"]
[Board "104"]

1. e4 {[%clk 0:03:00]}  e6 {[%clk 0:02:59]} 2. d4 {[%clk 0:03:01]}  d5 {[%clk 0:03:00]} 3. exd5 {[%clk 0:03:01]}  exd5 {[%clk 0:03:00]} 4. Nf3 {[%clk 0:03:02]}  Bd6 {[%clk 0:03:00]} 5. c4 {[%clk 0:03:02]}  Nf6 {[%clk 0:03:00]} 6. c5 {[%clk 0:03:02]}  Be7 {[%clk 0:03:00]} 7. Bd3 {[%clk 0:03:03]}  O-O {[%clk 0:03:00]} 8. O-O {[%clk 0:03:04]}  b6 {[%clk 0:03:01]} 9. Be3 {[%clk 0:03:04]}  Ba6 {[%clk 0:02:59]} 10. Bxa6 {[%clk 0:02:55]}  Nxa6 {[%clk 0:03:00]} 11. Qa4 {[%clk 0:02:55]}  Nb8 {[%clk 0:02:58]} 12. Nc3 {[%clk 0:02:55]}  Qd7 {[%clk 0:02:42]} 13. Qc2 {[%clk 0:02:50]}  bxc5 {[%clk 0:02:31]} 14. dxc5 {[%clk 0:02:51]}  c6 {[%clk 0:02:32]} 15. b4 {[%clk 0:02:43]}  Qb7 {[%clk 0:02:28]} 16. a3 {[%clk 0:02:41]}  Nbd7 {[%clk 0:02:26]} 17. Bd4 {[%clk 0:02:38]}  a6 {[%clk 0:02:26]} 18. Rfe1 {[%clk 0:02:38]}  Rfe8 {[%clk 0:02:26]} 19. Ne5 {[%clk 0:02:34]}  Nxe5 {[%clk 0:02:24]} 20. Rxe5 {[%clk 0:02:35]}  Bf8 {[%clk 0:02:21]} 21. Rae1 {[%clk 0:02:31]}  g6 {[%clk 0:02:11]} 22. Qd2 {[%clk 0:01:30]}  Bg7 {[%clk 0:01:56]} 23. Rxe8+ {[%clk 0:01:22]}  Rxe8 {[%clk 0:01:56]} 24. Rxe8+ {[%clk 0:01:21]}  Nxe8 {[%clk 0:01:56]} 25. Bxg7 {[%clk 0:01:22]}  Nxg7 {[%clk 0:01:52]} 26. Ne2 {[%clk 0:01:15]}  Ne6 {[%clk 0:01:51]} 27. Nd4 {[%clk 0:01:14]}  Nxd4 {[%clk 0:01:44]} 28. Qxd4 {[%clk 0:01:15]}  Qe7 {[%clk 0:01:44]} 29. h4 {[%clk 0:01:09]}  Qe1+ {[%clk 0:01:34]} 30. Kh2 {[%clk 0:01:09]}  Qc1 {[%clk 0:01:34]} 31. Qe3 {[%clk 0:00:34]}  Qxe3 {[%clk 0:01:10]} 32. fxe3 {[%clk 0:00:35]}  f5 {[%clk 0:01:02]} 33. Kg3 {[%clk 0:00:34]}  Kf7 {[%clk 0:00:59]} 34. Kf4 {[%clk 0:00:04]}  Kf6 {[%clk 0:00:59]} 35. g4 {[%clk 0:00:04]}  fxg4 {[%clk 0:00:54]} 36. Kxg4 {[%clk 0:00:05]}  h6 {[%clk 0:00:43]} 37. a4 {[%clk 0:00:05]}  Ke5 {[%clk 0:00:35]} 38. Kg3 {[%clk 0:00:04]}  d4 {[%clk 0:00:25]} 39. Kf3 {[%clk 0:00:03]}  d3 {[%clk 0:00:18]} 40. Kf2 {[%clk 0:00:03]}  g5 {[%clk 0:00:18]} 41. hxg5 {[%clk 0:00:03]}  hxg5 {[%clk 0:00:19]} 42. Ke1 {[%clk 0:00:02]}  g4 {[%clk 0:00:19]} 43. b5 {[%clk 0:00:01]}  axb5 {[%clk 0:00:19]} 44. a5 {[%clk 0:00:02]}  g3 {[%clk 0:00:18]} 45. a6 {[%clk 0:00:02]}  g2 {[%clk 0:00:19]} 46. Kf2 {[%clk 0:00:03]}  d2 {[%clk 0:00:19]} 47. a7 {[%clk 0:00:04]}  d1=Q {[%clk 0:00:19]} 48. a8=Q {[%clk 0:00:04]}  g1=Q# {[%clk 0:00:19]} 0-1


[Site "https://www.chess.com"]

[Event "Titled Tuesday Blitz June 27 Late 2023"]
[White "Karttunen, Mika"]
[Black "i_like_explosions"]
[WhiteFideId "502081"]
[WhiteElo "2640"]
[BlackElo "2413"]
[Result "1-0"]
[Round "4"]
[TimeControl "180+2"]
[Date "2023.06.27"]
[WhiteClock "0:00:06"]
[BlackClock "0:00:04"]
[Board "105"]

1. c4 {[%clk 0:02:57]}  Nf6 {[%clk 0:02:59]} 2. Nc3 {[%clk 0:02:55]}  g6 {[%clk 0:02:59]} 3. d4 {[%clk 0:02:50]}  Bg7 {[%clk 0:02:59]} 4. e4 {[%clk 0:02:49]}  d6 {[%clk 0:02:59]} 5. Nf3 {[%clk 0:02:46]}  O-O {[%clk 0:02:58]} 6. h3 {[%clk 0:02:46]}  e5 {[%clk 0:02:59]} 7. d5 {[%clk 0:02:45]}  a5 {[%clk 0:02:58]} 8. Be3 {[%clk 0:02:42]}  Nfd7 {[%clk 0:02:58]} 9. g4 {[%clk 0:02:41]}  Na6 {[%clk 0:02:58]} 10. Bd3 {[%clk 0:02:39]}  Ndc5 {[%clk 0:02:58]} 11. Bc2 {[%clk 0:02:35]}  Bd7 {[%clk 0:02:58]} 12. a3 {[%clk 0:02:29]}  Qb8 {[%clk 0:02:50]} 13. Qe2 {[%clk 0:01:57]}  c6 {[%clk 0:02:21]} 14. Nd2 {[%clk 0:01:40]}  cxd5 {[%clk 0:02:13]} 15. Nxd5 {[%clk 0:01:36]}  b5 {[%clk 0:02:03]} 16. O-O {[%clk 0:01:19]}  a4 {[%clk 0:01:35]} 17. Nc3 {[%clk 0:00:52]}  b4 {[%clk 0:01:15]} 18. Nb5 {[%clk 0:00:41]}  b3 {[%clk 0:01:09]} 19. Bd3 {[%clk 0:00:40]}  Bc6 {[%clk 0:01:01]} 20. Rad1 {[%clk 0:00:34]}  Rd8 {[%clk 0:01:00]} 21. f3 {[%clk 0:00:28]}  Nc7 {[%clk 0:00:43]} 22. Nc3 {[%clk 0:00:27]}  N7e6 {[%clk 0:00:42]} 23. Nd5 {[%clk 0:00:27]}  Bxd5 {[%clk 0:00:34]} 24. cxd5 {[%clk 0:00:25]}  Nf4 {[%clk 0:00:17]} 25. Bxf4 {[%clk 0:00:26]}  exf4 {[%clk 0:00:18]} 26. Nc4 {[%clk 0:00:26]}  Qa7 {[%clk 0:00:17]} 27. Kg2 {[%clk 0:00:25]}  g5 {[%clk 0:00:17]} 28. Bb1 {[%clk 0:00:22]}  Rac8 {[%clk 0:00:15]} 29. Rfe1 {[%clk 0:00:23]}  Qb8 {[%clk 0:00:12]} 30. Rc1 {[%clk 0:00:23]}  Nd7 {[%clk 0:00:12]} 31. Red1 {[%clk 0:00:23]}  Ne5 {[%clk 0:00:12]} 32. Nxe5 {[%clk 0:00:20]}  Bxe5 {[%clk 0:00:13]} 33. Bd3 {[%clk 0:00:20]}  Kg7 {[%clk 0:00:13]} 34. Ba6 {[%clk 0:00:18]}  Rc7 {[%clk 0:00:11]} 35. Rc6 {[%clk 0:00:18]}  Rdd7 {[%clk 0:00:08]} 36. Rdc1 {[%clk 0:00:17]}  Ra7 {[%clk 0:00:08]} 37. Bd3 {[%clk 0:00:14]}  Rdc7 {[%clk 0:00:08]} 38. R1c4 {[%clk 0:00:13]}  Qc8 {[%clk 0:00:05]} 39. Qd2 {[%clk 0:00:12]}  Qd7 {[%clk 0:00:04]} 40. Be2 {[%clk 0:00:12]}  h5 {[%clk 0:00:05]} 41. Qc1 {[%clk 0:00:12]}  Rcb7 {[%clk 0:00:04]} 42. gxh5 {[%clk 0:00:12]}  Qe7 {[%clk 0:00:04]} 43. Rc8 {[%clk 0:00:12]}  Qf6 {[%clk 0:00:04]} 44. Re8 {[%clk 0:00:10]}  Qh6 {[%clk 0:00:04]} 45. Rcc8 {[%clk 0:00:09]}  Qxh5 {[%clk 0:00:04]} 46. Rg8+ {[%clk 0:00:09]}  Kf6 {[%clk 0:00:05]} 47. Rh8 {[%clk 0:00:09]}  Qg6 {[%clk 0:00:03]} 48. Rcg8 {[%clk 0:00:09]}  Rc7 {[%clk 0:00:03]} 49. Rxg6+ {[%clk 0:00:09]}  Kxg6 {[%clk 0:00:04]} 50. Rg8+ {[%clk 0:00:09]}  Kh7 {[%clk 0:00:04]} 51. Qe1 {[%clk 0:00:07]}  Rc2 {[%clk 0:00:05]} 52. Rxg5 {[%clk 0:00:06]}  f6 {[%clk 0:00:04]} 53. Qh4# {[%clk 0:00:06]} 1-0


[Site "https://www.chess.com"]

[Event "Titled Tuesday Blitz June 27 Late 2023"]
[White "Vlassov, Nikolai"]
[Black "Vega Gutierrez, Sabrina"]
[WhiteFideId "4103360"]
[BlackFideId "2219026"]
[WhiteElo "2626"]
[BlackElo "2407"]
[Result "1-0"]
[Round "4"]
[TimeControl "180+2"]
[Date "2023.06.27"]
[WhiteClock "0:00:22"]
[BlackClock "0:00:00"]
[Board "106"]

1. e4 {[%clk 0:03:00]}  c5 {[%clk 0:02:59]} 2. c3 {[%clk 0:03:00]}  d5 {[%clk 0:02:59]} 3. exd5 {[%clk 0:03:00]}  Qxd5 {[%clk 0:03:00]} 4. d4 {[%clk 0:03:00]}  Nc6 {[%clk 0:02:42]} 5. Nf3 {[%clk 0:02:59]}  Bf5 {[%clk 0:02:42]} 6. Be3 {[%clk 0:02:49]}  cxd4 {[%clk 0:02:41]} 7. Nxd4 {[%clk 0:02:46]}  Nxd4 {[%clk 0:02:35]} 8. Qxd4 {[%clk 0:02:45]}  Qxd4 {[%clk 0:02:28]} 9. Bxd4 {[%clk 0:02:45]}  Nf6 {[%clk 0:02:24]} 10. Na3 {[%clk 0:02:41]}  a6 {[%clk 0:02:13]} 11. Nc4 {[%clk 0:02:40]}  e6 {[%clk 0:02:10]} 12. Be2 {[%clk 0:02:37]}  Nd7 {[%clk 0:01:24]} 13. Bf3 {[%clk 0:02:33]}  O-O-O {[%clk 0:01:23]} 14. Na5 {[%clk 0:02:23]}  b6 {[%clk 0:01:18]} 15. Nc6 {[%clk 0:02:14]}  Re8 {[%clk 0:01:17]} 16. O-O {[%clk 0:01:48]}  e5 {[%clk 0:01:13]} 17. Be3 {[%clk 0:01:40]}  Bc5 {[%clk 0:01:12]} 18. Be2 {[%clk 0:01:13]}  Kb7 {[%clk 0:01:11]} 19. Nb4 {[%clk 0:01:09]}  Bxb4 {[%clk 0:00:42]} 20. cxb4 {[%clk 0:01:09]}  Rc8 {[%clk 0:00:43]} 21. Rfd1 {[%clk 0:01:05]}  e4 {[%clk 0:00:23]} 22. a4 {[%clk 0:00:59]}  Rhd8 {[%clk 0:00:20]} 23. f3 {[%clk 0:00:51]}  Rc2 {[%clk 0:00:19]} 24. Kf1 {[%clk 0:00:39]}  Rcc8 {[%clk 0:00:11]} 25. Rd6 {[%clk 0:00:37]}  Rc6 {[%clk 0:00:11]} 26. Rxc6 {[%clk 0:00:35]}  Kxc6 {[%clk 0:00:11]} 27. Bxa6 {[%clk 0:00:35]}  Ne5 {[%clk 0:00:10]} 28. Rc1+ {[%clk 0:00:35]}  Kd7 {[%clk 0:00:06]} 29. Bxb6 {[%clk 0:00:35]}  Ra8 {[%clk 0:00:05]} 30. Bb5+ {[%clk 0:00:35]}  Ke7 {[%clk 0:00:05]} 31. Rc7+ {[%clk 0:00:32]}  Kf8 {[%clk 0:00:04]} 32. Rc5 {[%clk 0:00:28]}  f6 {[%clk 0:00:04]} 33. f4 {[%clk 0:00:25]}  Nd7 {[%clk 0:00:03]} 34. Rxf5 {[%clk 0:00:21]}  Nxb6 {[%clk 0:00:00]} 35. a5 {[%clk 0:00:22]} 1-0


[Site "https://www.chess.com"]

[Event "Titled Tuesday Blitz June 27 Late 2023"]
[White "Adewumi, Tanitoluwa"]
[Black "Pinto, Daniel"]
[WhiteFideId "30966396"]
[BlackFideId "3303144"]
[WhiteElo "2621"]
[BlackElo "2406"]
[Result "0-1"]
[Round "4"]
[TimeControl "180+2"]
[Date "2023.06.27"]
[WhiteClock "0:00:01"]
[BlackClock "0:00:06"]
[Board "107"]

1. e4 {[%clk 0:03:00]}  c6 {[%clk 0:02:57]} 2. d4 {[%clk 0:03:00]}  d5 {[%clk 0:02:51]} 3. e5 {[%clk 0:02:59]}  Bf5 {[%clk 0:02:50]} 4. Nf3 {[%clk 0:02:59]}  e6 {[%clk 0:02:48]} 5. Be2 {[%clk 0:02:59]}  Nd7 {[%clk 0:02:48]} 6. O-O {[%clk 0:02:59]}  Ne7 {[%clk 0:02:48]} 7. Nh4 {[%clk 0:02:59]}  Bg6 {[%clk 0:02:44]} 8. c3 {[%clk 0:02:36]}  Nf5 {[%clk 0:02:42]} 9. Nxg6 {[%clk 0:02:33]}  hxg6 {[%clk 0:02:43]} 10. Nd2 {[%clk 0:02:31]}  g5 {[%clk 0:02:29]} 11. g3 {[%clk 0:02:22]}  c5 {[%clk 0:02:01]} 12. Nf3 {[%clk 0:02:18]}  g4 {[%clk 0:01:59]} 13. Ne1 {[%clk 0:02:04]}  cxd4 {[%clk 0:01:07]} 14. cxd4 {[%clk 0:02:04]}  Qb6 {[%clk 0:01:05]} 15. Nc2 {[%clk 0:02:00]}  f6 {[%clk 0:00:59]} 16. Bxg4 {[%clk 0:01:52]}  g6 {[%clk 0:00:48]} 17. exf6 {[%clk 0:01:46]}  Nxf6 {[%clk 0:00:47]} 18. Re1 {[%clk 0:01:40]}  Kf7 {[%clk 0:00:47]} 19. Bg5 {[%clk 0:01:28]}  Be7 {[%clk 0:00:37]} 20. Qf3 {[%clk 0:01:15]}  Rac8 {[%clk 0:00:35]} 21. Rac1 {[%clk 0:01:03]}  Qxb2 {[%clk 0:00:35]} 22. Bxf5 {[%clk 0:00:26]}  gxf5 {[%clk 0:00:33]} 23. Qe2 {[%clk 0:00:24]}  Rc6 {[%clk 0:00:24]} 24. Bxf6 {[%clk 0:00:13]}  Bxf6 {[%clk 0:00:23]} 25. a3 {[%clk 0:00:04]}  Bg5 {[%clk 0:00:22]} 26. f4 {[%clk 0:00:02]}  Bf6 {[%clk 0:00:22]} 27. Kg2 {[%clk 0:00:02]}  Rhc8 {[%clk 0:00:20]} 28. Qh5+ {[%clk 0:00:02]}  Kg7 {[%clk 0:00:20]} 29. Re2 {[%clk 0:00:02]}  Rxc2 {[%clk 0:00:20]} 30. Rcxc2 {[%clk 0:00:02]}  Rxc2 {[%clk 0:00:21]} 31. Rxc2 {[%clk 0:00:01]}  Qxc2+ {[%clk 0:00:22]} 32. Kh3 {[%clk 0:00:02]}  Qd3 {[%clk 0:00:14]} 33. Kg2 {[%clk 0:00:02]}  Qxd4 {[%clk 0:00:13]} 34. Qe8 {[%clk 0:00:02]}  Qe4+ {[%clk 0:00:13]} 35. Kh3 {[%clk 0:00:02]}  Qf3 {[%clk 0:00:06]} 36. Qd7+ {[%clk 0:00:01]}  Kh6 {[%clk 0:00:06]} 37. Qf7 {[%clk 0:00:01]}  Qf1# {[%clk 0:00:06]} 0-1


[Site "https://www.chess.com"]

[Event "Titled Tuesday Blitz June 27 Late 2023"]
[White "Zeynalli, Rashad"]
[Black "Gulamali, Kazim"]
[WhiteFideId "13403320"]
[BlackFideId "2024764"]
[WhiteElo "2611"]
[BlackElo "2404"]
[Result "0-1"]
[Round "4"]
[TimeControl "180+2"]
[Date "2023.06.27"]
[WhiteClock "0:00:33"]
[BlackClock "0:00:15"]
[Board "109"]

1. e4 {[%clk 0:02:54]}  e5 {[%clk 0:02:59]} 2. Nf3 {[%clk 0:02:52]}  Nc6 {[%clk 0:02:59]} 3. Bc4 {[%clk 0:02:49]}  Nf6 {[%clk 0:03:00]} 4. Ng5 {[%clk 0:02:47]}  d5 {[%clk 0:02:59]} 5. exd5 {[%clk 0:02:48]}  Na5 {[%clk 0:02:59]} 6. Bb5+ {[%clk 0:02:49]}  c6 {[%clk 0:03:00]} 7. dxc6 {[%clk 0:02:50]}  bxc6 {[%clk 0:03:00]} 8. Bd3 {[%clk 0:02:50]}  h6 {[%clk 0:02:55]} 9. Ne4 {[%clk 0:02:48]}  Nd5 {[%clk 0:02:55]} 10. O-O {[%clk 0:02:47]}  Be7 {[%clk 0:02:55]} 11. Re1 {[%clk 0:02:44]}  O-O {[%clk 0:02:54]} 12. Ng3 {[%clk 0:02:40]}  Bd6 {[%clk 0:02:43]} 13. Bf5 {[%clk 0:02:37]}  Bxf5 {[%clk 0:02:20]} 14. Nxf5 {[%clk 0:02:36]}  Qf6 {[%clk 0:02:20]} 15. Nxd6 {[%clk 0:02:35]}  Qxd6 {[%clk 0:02:21]} 16. d3 {[%clk 0:02:33]}  f5 {[%clk 0:02:20]} 17. Nd2 {[%clk 0:02:30]}  Rae8 {[%clk 0:02:15]} 18. Nc4 {[%clk 0:02:30]}  Qc7 {[%clk 0:02:15]} 19. Nxa5 {[%clk 0:02:27]}  Qxa5 {[%clk 0:02:16]} 20. Bd2 {[%clk 0:02:27]}  Qc7 {[%clk 0:02:15]} 21. c3 {[%clk 0:02:23]}  Kh7 {[%clk 0:02:10]} 22. Qa4 {[%clk 0:02:19]}  Re6 {[%clk 0:02:06]} 23. f4 {[%clk 0:02:15]}  Qb6+ {[%clk 0:01:58]} 24. Kh1 {[%clk 0:02:07]}  Qxb2 {[%clk 0:01:58]} 25. Rad1 {[%clk 0:02:06]}  Rfe8 {[%clk 0:01:38]} 26. fxe5 {[%clk 0:01:52]}  Rxe5 {[%clk 0:01:39]} 27. Rxe5 {[%clk 0:01:47]}  Rxe5 {[%clk 0:01:40]} 28. Qd4 {[%clk 0:01:36]}  Re2 {[%clk 0:01:22]} 29. Bc1 {[%clk 0:01:24]}  Qxc3 {[%clk 0:01:10]} 30. Qxa7 {[%clk 0:01:20]}  c5 {[%clk 0:01:01]} 31. h3 {[%clk 0:00:40]}  Re1+ {[%clk 0:00:59]} 32. Rxe1 {[%clk 0:00:41]}  Qxe1+ {[%clk 0:00:59]} 33. Kh2 {[%clk 0:00:42]}  Qxc1 {[%clk 0:00:56]} 34. Qd7 {[%clk 0:00:41]}  Qf4+ {[%clk 0:00:55]} 35. Kh1 {[%clk 0:00:41]}  Ne3 {[%clk 0:00:53]} 36. Qc6 {[%clk 0:00:41]}  Qf1+ {[%clk 0:00:30]} 37. Kh2 {[%clk 0:00:40]}  Qxd3 {[%clk 0:00:31]} 38. Qxc5 {[%clk 0:00:40]}  Qe4 {[%clk 0:00:27]} 39. Kg3 {[%clk 0:00:36]}  Qxg2+ {[%clk 0:00:23]} 40. Kf4 {[%clk 0:00:36]}  Qe4+ {[%clk 0:00:18]} 41. Kg3 {[%clk 0:00:36]}  f4+ {[%clk 0:00:16]} 42. Kf2 {[%clk 0:00:36]}  Qc2+ {[%clk 0:00:15]} 43. Kf3 {[%clk 0:00:33]}  Qxc5 {[%clk 0:00:15]} 0-1


[Site "https://www.chess.com"]

[Event "Titled Tuesday Blitz June 27 Late 2023"]
[White "Romero Ruscalleda, Josep"]
[Black "Gubajdullin, Alexei"]
[WhiteFideId "2231859"]
[BlackFideId "4141202"]
[WhiteElo "2391"]
[BlackElo "2597"]
[Result "0-1"]
[Round "4"]
[TimeControl "180+2"]
[Date "2023.06.27"]
[WhiteClock "0:00:03"]
[BlackClock "0:00:09"]
[Board "111"]

1. e4 {[%clk 0:03:00]}  g6 {[%clk 0:02:58]} 2. d4 {[%clk 0:03:00]}  d6 {[%clk 0:02:58]} 3. Nc3 {[%clk 0:03:00]}  c6 {[%clk 0:02:58]} 4. a4 {[%clk 0:02:59]}  a5 {[%clk 0:02:56]} 5. g3 {[%clk 0:02:58]}  Na6 {[%clk 0:02:56]} 6. Bg2 {[%clk 0:02:58]}  Nb4 {[%clk 0:02:56]} 7. Nge2 {[%clk 0:02:58]}  Bg7 {[%clk 0:02:57]} 8. O-O {[%clk 0:02:58]}  Nf6 {[%clk 0:02:57]} 9. Bg5 {[%clk 0:02:55]}  O-O {[%clk 0:02:57]} 10. Qd2 {[%clk 0:02:54]}  e5 {[%clk 0:02:55]} 11. Rad1 {[%clk 0:02:45]}  Qb6 {[%clk 0:02:54]} 12. dxe5 {[%clk 0:02:30]}  dxe5 {[%clk 0:02:54]} 13. Be3 {[%clk 0:02:30]}  Qa6 {[%clk 0:02:41]} 14. Nc1 {[%clk 0:02:16]}  Be6 {[%clk 0:02:37]} 15. f4 {[%clk 0:01:58]}  Bc4 {[%clk 0:02:29]} 16. Rfe1 {[%clk 0:01:51]}  Ng4 {[%clk 0:02:23]} 17. Bc5 {[%clk 0:01:49]}  b6 {[%clk 0:02:23]} 18. Bxf8 {[%clk 0:01:47]}  Bxf8 {[%clk 0:02:23]} 19. Bf3 {[%clk 0:01:42]}  Bc5+ {[%clk 0:02:18]} 20. Kg2 {[%clk 0:01:42]}  Nf2 {[%clk 0:02:18]} 21. f5 {[%clk 0:01:30]}  Qc8 {[%clk 0:02:05]} 22. Nb3 {[%clk 0:01:19]}  Bxb3 {[%clk 0:01:57]} 23. cxb3 {[%clk 0:01:16]}  Qf8 {[%clk 0:01:40]} 24. Qd7 {[%clk 0:01:08]}  Qh6 {[%clk 0:01:33]} 25. fxg6 {[%clk 0:01:03]}  hxg6 {[%clk 0:01:30]} 26. Rd2 {[%clk 0:00:57]}  Kg7 {[%clk 0:00:58]} 27. Rxf2 {[%clk 0:00:54]}  Bxf2 {[%clk 0:00:57]} 28. Kxf2 {[%clk 0:00:54]}  Qxh2+ {[%clk 0:00:57]} 29. Bg2 {[%clk 0:00:55]}  Qh6 {[%clk 0:00:56]} 30. Qd6 {[%clk 0:00:39]}  Qg5 {[%clk 0:00:54]} 31. Re3 {[%clk 0:00:32]}  Rd8 {[%clk 0:00:52]} 32. Qc7 {[%clk 0:00:26]}  Rd2+ {[%clk 0:00:52]} 33. Ne2 {[%clk 0:00:26]}  Nd3+ {[%clk 0:00:37]} 34. Rxd3 {[%clk 0:00:26]}  Rxd3 {[%clk 0:00:38]} 35. Qxc6 {[%clk 0:00:25]}  Rxb3 {[%clk 0:00:32]} 36. Qc2 {[%clk 0:00:21]}  Qe3+ {[%clk 0:00:29]} 37. Kf1 {[%clk 0:00:20]}  Rd3 {[%clk 0:00:28]} 38. Ke1 {[%clk 0:00:17]}  Rd6 {[%clk 0:00:20]} 39. Qc3 {[%clk 0:00:17]}  Qg5 {[%clk 0:00:19]} 40. Nf4 {[%clk 0:00:15]}  Rd4 {[%clk 0:00:17]} 41. Nd5 {[%clk 0:00:15]}  Qd8 {[%clk 0:00:12]} 42. Qc7 {[%clk 0:00:13]}  Qxc7 {[%clk 0:00:11]} 43. Nxc7 {[%clk 0:00:13]}  Rxa4 {[%clk 0:00:12]} 44. Nd5 {[%clk 0:00:13]}  Ra1+ {[%clk 0:00:13]} 45. Kd2 {[%clk 0:00:13]}  b5 {[%clk 0:00:13]} 46. Nc3 {[%clk 0:00:13]}  b4 {[%clk 0:00:13]} 47. Nd5 {[%clk 0:00:13]}  Rg1 {[%clk 0:00:12]} 48. Bf3 {[%clk 0:00:12]}  Rxg3 {[%clk 0:00:12]} 49. Be2 {[%clk 0:00:13]}  g5 {[%clk 0:00:11]} 50. Bb5 {[%clk 0:00:11]}  g4 {[%clk 0:00:10]} 51. Ne3 {[%clk 0:00:10]}  Kf8 {[%clk 0:00:09]} 52. Nf5 {[%clk 0:00:10]}  Rg1 {[%clk 0:00:09]} 53. Be2 {[%clk 0:00:10]}  g3 {[%clk 0:00:09]} 54. Ke3 {[%clk 0:00:10]}  Rb1 {[%clk 0:00:08]} 55. Nxg3 {[%clk 0:00:10]}  Rxb2 {[%clk 0:00:08]} 56. Nf5 {[%clk 0:00:10]}  a4 {[%clk 0:00:09]} 57. Bc4 {[%clk 0:00:09]}  a3 {[%clk 0:00:09]} 58. Nd6 {[%clk 0:00:09]}  b3 {[%clk 0:00:09]} 59. Nxf7 {[%clk 0:00:07]}  a2 {[%clk 0:00:08]} 60. Nxe5 {[%clk 0:00:07]}  a1=Q {[%clk 0:00:09]} 61. Kf4 {[%clk 0:00:07]}  Qc1+ {[%clk 0:00:08]} 62. Kf5 {[%clk 0:00:07]}  Rf2+ {[%clk 0:00:08]} 63. Ke6 {[%clk 0:00:07]}  Qh6+ {[%clk 0:00:08]} 64. Kd5 {[%clk 0:00:06]}  Rd2+ {[%clk 0:00:08]} 65. Kc5 {[%clk 0:00:05]}  Qd6+ {[%clk 0:00:08]} 66. Kb5 {[%clk 0:00:03]}  Qxe5+ {[%clk 0:00:09]} 0-1


[Site "https://www.chess.com"]

[Event "Titled Tuesday Blitz June 27 Late 2023"]
[White "Bitoon, Richard"]
[Black "BenchGM"]
[WhiteFideId "5201110"]
[WhiteElo "2578"]
[BlackElo "2379"]
[Result "1-0"]
[Round "4"]
[TimeControl "180+2"]
[Date "2023.06.27"]
[WhiteClock "0:00:26"]
[BlackClock "0:00:43"]
[Board "113"]

1. b3 {[%clk 0:01:06]}  e5 {[%clk 0:02:58]} 2. Bb2 {[%clk 0:01:07]}  Nc6 {[%clk 0:02:58]} 3. e3 {[%clk 0:01:08]}  Nf6 {[%clk 0:02:58]} 4. Bb5 {[%clk 0:01:09]}  d6 {[%clk 0:02:57]} 5. Na3 {[%clk 0:01:09]}  g6 {[%clk 0:02:55]} 6. d4 {[%clk 0:01:09]}  exd4 {[%clk 0:02:47]} 7. exd4 {[%clk 0:01:06]}  Qe7+ {[%clk 0:02:40]} 8. Kf1 {[%clk 0:01:02]}  d5 {[%clk 0:02:36]} 9. Qf3 {[%clk 0:00:59]}  Ne4 {[%clk 0:02:32]} 10. Qe3 {[%clk 0:00:53]}  h5 {[%clk 0:02:19]} 11. Re1 {[%clk 0:00:40]}  Bh6 {[%clk 0:02:19]} 12. f4 {[%clk 0:00:41]}  O-O {[%clk 0:02:07]} 13. Nc4 {[%clk 0:00:36]}  Bf5 {[%clk 0:01:54]} 14. Ba3 {[%clk 0:00:35]}  Qh4 {[%clk 0:01:43]} 15. Bxf8 {[%clk 0:00:36]}  Rxf8 {[%clk 0:01:38]} 16. Bxc6 {[%clk 0:00:32]}  bxc6 {[%clk 0:01:36]} 17. g3 {[%clk 0:00:31]}  Bh3+ {[%clk 0:01:34]} 18. Nxh3 {[%clk 0:00:25]}  Qxh3+ {[%clk 0:01:34]} 19. Kg1 {[%clk 0:00:26]}  f6 {[%clk 0:01:10]} 20. Nd2 {[%clk 0:00:26]}  Re8 {[%clk 0:01:10]} 21. Nxe4 {[%clk 0:00:26]}  Rxe4 {[%clk 0:01:10]} 22. Qf2 {[%clk 0:00:27]}  f5 {[%clk 0:01:04]} 23. c3 {[%clk 0:00:26]}  h4 {[%clk 0:01:01]} 24. Re3 {[%clk 0:00:25]}  hxg3 {[%clk 0:00:59]} 25. hxg3 {[%clk 0:00:25]}  Qg4 {[%clk 0:00:54]} 26. Rxh6 {[%clk 0:00:25]}  Qd1+ {[%clk 0:00:53]} 27. Kg2 {[%clk 0:00:25]}  Kg7 {[%clk 0:00:50]} 28. Rh1 {[%clk 0:00:25]}  Qg4 {[%clk 0:00:47]} 29. Qf3 {[%clk 0:00:25]}  Rxe3 {[%clk 0:00:43]} 30. Qxe3 {[%clk 0:00:26]} 1-0


[Site "https://www.chess.com"]

[Event "Titled Tuesday Blitz June 27 Late 2023"]
[White "Srdanovic, Jovana"]
[Black "Palencia Morales, Wilson Guillermo"]
[WhiteFideId "954810"]
[BlackFideId "4401859"]
[WhiteElo "2379"]
[BlackElo "2564"]
[Result "1-0"]
[Round "4"]
[TimeControl "180+2"]
[Date "2023.06.27"]
[WhiteClock "0:00:21"]
[BlackClock "0:00:00"]
[Board "114"]

1. d4 {[%clk 0:03:00]}  Nf6 {[%clk 0:02:59]} 2. c4 {[%clk 0:02:59]}  c5 {[%clk 0:02:59]} 3. d5 {[%clk 0:02:59]}  e6 {[%clk 0:02:58]} 4. Nc3 {[%clk 0:02:58]}  exd5 {[%clk 0:02:59]} 5. cxd5 {[%clk 0:02:58]}  d6 {[%clk 0:03:00]} 6. e4 {[%clk 0:02:57]}  g6 {[%clk 0:02:55]} 7. f4 {[%clk 0:02:57]}  Bg7 {[%clk 0:02:55]} 8. Bb5+ {[%clk 0:02:56]}  Nfd7 {[%clk 0:02:54]} 9. a4 {[%clk 0:02:55]}  Na6 {[%clk 0:02:53]} 10. Nf3 {[%clk 0:02:54]}  Nb4 {[%clk 0:02:53]} 11. O-O {[%clk 0:02:52]}  a6 {[%clk 0:02:50]} 12. Bxd7+ {[%clk 0:02:33]}  Bxd7 {[%clk 0:02:47]} 13. e5 {[%clk 0:02:33]}  O-O {[%clk 0:02:40]} 14. Ne4 {[%clk 0:02:31]}  dxe5 {[%clk 0:02:37]} 15. fxe5 {[%clk 0:02:30]}  Bg4 {[%clk 0:02:36]} 16. Nxc5 {[%clk 0:02:27]}  Bxe5 {[%clk 0:02:26]} 17. Qb3 {[%clk 0:02:09]}  Bxf3 {[%clk 0:02:21]} 18. Rxf3 {[%clk 0:02:02]}  Qh4 {[%clk 0:01:59]} 19. Be3 {[%clk 0:01:47]}  Bxh2+ {[%clk 0:01:50]} 20. Kf1 {[%clk 0:01:36]}  Bd6 {[%clk 0:01:30]} 21. Rd1 {[%clk 0:01:28]}  Rfe8 {[%clk 0:01:14]} 22. Rh3 {[%clk 0:01:21]}  Qg4 {[%clk 0:01:10]} 23. Rd4 {[%clk 0:01:17]}  Qf5+ {[%clk 0:01:07]} 24. Rf3 {[%clk 0:01:16]}  Qb1+ {[%clk 0:01:07]} 25. Rd1 {[%clk 0:01:01]}  Qc2 {[%clk 0:01:05]} 26. Qxc2 {[%clk 0:00:48]}  Nxc2 {[%clk 0:01:03]} 27. Bf2 {[%clk 0:00:48]}  b5 {[%clk 0:00:33]} 28. Nd7 {[%clk 0:00:45]}  Red8 {[%clk 0:00:23]} 29. Nf6+ {[%clk 0:00:44]}  Kg7 {[%clk 0:00:23]} 30. Rc1 {[%clk 0:00:39]}  Nb4 {[%clk 0:00:16]} 31. Bd4 {[%clk 0:00:38]}  h5 {[%clk 0:00:06]} 32. Nxh5+ {[%clk 0:00:37]}  Kh6 {[%clk 0:00:06]} 33. Nf6 {[%clk 0:00:28]}  Be7 {[%clk 0:00:06]} 34. Ne4 {[%clk 0:00:22]}  f5 {[%clk 0:00:00]} 35. Rh3+ {[%clk 0:00:21]} 1-0


[Site "https://www.chess.com"]